[Event "-chT Youth Countries 2019"]
[Site "Wuerzburg"]
[Date "2019.10.04"]
[Round "5.6"]
[White "Ermitsch, Magnus"]
[Black "Muedder, Melanie"]
[Result "1-0"]
[ECO "B32"]
[WhiteElo "1671"]
[BlackElo "1964"]
[Annotator "NA"]
[PlyCount "65"]
[EventDate "2019.10.02"]
[EventType "team-tourn"]
[EventRounds "7"]
[EventCountry "GER"]
[SourceTitle "playchess.com"]
[Source "ChessBase"]
[SourceQuality "1"]
[WhiteTeam "Berlin"]
[BlackTeam "Nordrhein-Westfalen"]
[TimeControl "40/5400+30:1800+30"]

1. e4 {[%emt 0:00:05]} c5 {[%emt 0:00:00]} 2. Nf3 {[%emt 0:00:59]} Nc6 {[%emt 0:00:00]} 3. d4 {[%emt 0:00:39]} cxd4 {[%emt 0:00:00]} 4. Nxd4 {[%emt 0:00:30]} e5 {[%emt 0:00:05]} 5. Nb5 {[%emt 0:00:35]} d6 {[%emt 0:00:12]} 6. N1c3 {[%emt 0:00:39]} a6 {[%emt 0:00:08]} 7. Na3 {[%emt 0:00:32]} Be6 {[%emt 0:00:13]} 8. Be3 {[%emt 0:06:26]} Nf6 {[%emt 0:13:31]} 9. Be2 {[%emt 0:03:50]} b5 {[%emt 0:05:02]} 10. Nd5 {[%emt 0:00:39]} Rb8 {[%emt 0:08:33]} 11. O-O {[%emt 0:17:24]} Be7 {[%emt 0:11:32]} 12. f3 {[%emt 0:08:41]} O-O {[%emt 0:05:03]} 13. Nxf6+ {[%emt 0:07:05]} Bxf6 {[%emt 0:00:15]} 14. c4 {[%emt 0:04:24]} bxc4 {[%emt 0:07:29]} 15. Bxc4 {[%emt 0:06:24]} Be7 {[%emt 0:16:45]} 16. Qd2 {[%emt 0:06:55]} a5 {[%emt 0:10:39]} 17. Rad1 {[%emt 0:03:43]} Qc8 {[%emt 0:03:38]} 18. Bd5 {[%emt 0:05:06]} Nb4 {[%emt 0:03:23]} 19. Ba7 {[%emt 0:01:47]} Bxd5 {[%emt 0:02:59]} 20. Bxb8 {[%emt 0:00:40]} Bxa2 {[%emt 0:00:49]} 21. Bxd6 {[%emt 0:01:13]} Rd8 {[%emt 0:02:39]} 22. Bxe7 {[%emt 0:00:07]} Rxd2 {[%emt 0:00:54]} 23. Rxd2 {[%emt 0:00:05]} Nd5 {[%emt 0:02:39]} 24. exd5 {[%emt 0:00:54]} f6 {[%emt 0:00:47]} 25. d6 {[%emt 0:01:38]} Be6 {[%emt 0:00:16]} 26. Rfd1 {[%emt 0:02:04]} Bd7 {[%emt 0:00:40]} 27. Rc2 {[%emt 0:01:55]} Qb7 {[%emt 0:02:38]} 28. Rc7 {[%emt 0:01:10]} Qb3 29. Rb1 {[%emt 0:03:25]} Qe3+ {[%emt 0:02:16]} 30. Kh1 {[%emt 0:00:29]} Bh3 {[%emt 0:01:01]} 31. d7 {[%emt 0:01:12]} Bxg2+ {[%emt 0:00:26]} 32. Kxg2 Qd2+ {[%emt 0:00:32]} 33. Kh1 {[%emt 0:00:17] normal} 1-0

[Event "-chT Youth Countries 2019"]
[Site "Wuerzburg"]
[Date "2019.10.04"]
[Round "5.6"]
[White "Grabs, Peter"]
[Black "Schwartz, Oliver"]
[Result "0-1"]
[ECO "B31"]
[WhiteElo "1592"]
[BlackElo "1650"]
[Annotator "NA"]
[PlyCount "72"]
[EventDate "2019.10.02"]
[EventType "team-tourn"]
[EventRounds "7"]
[EventCountry "GER"]
[SourceTitle "playchess.com"]
[Source "ChessBase"]
[SourceQuality "1"]
[WhiteTeam "Brandenburg/Berlin"]
[BlackTeam "Württemberg"]
[TimeControl "40/5400+30:1800+30"]

1. e4 {[%emt 0:00:00]} c5 {[%emt 0:00:00]} 2. Nf3 {[%emt 0:00:00]} Nc6 {[%emt 0:00:00]} 3. Bb5 g6 4. O-O {[%emt 0:00:18]} Bg7 {[%emt 0:00:21]} 5. Re1 {[%emt 0:00:03]} Nf6 {[%emt 0:00:49]} 6. c3 {[%emt 0:00:05]} O-O {[%emt 0:02:57]} 7. d4 {[%emt 0:00:33]} cxd4 {[%emt 0:02:02]} 8. cxd4 {[%emt 0:00:10]} a6 {[%emt 0:03:41]} 9. Bf1 {[%emt 0:00:21]} d5 {[%emt 0:01:20]} 10. e5 {[%emt 0:01:01]} Ne8 {[%emt 0:01:11]} 11. h3 {[%emt 0:00:49]} Nc7 {[%emt 0:08:45]} 12. Nc3 {[%emt 0:02:22]} b5 {[%emt 0:02:07]} 13. Be3 {[%emt 0:00:32]} Bb7 {[%emt 0:02:12]} 14. Rc1 {[%emt 0:00:38]} Rc8 {[%emt 0:03:26]} 15. a3 {[%emt 0:05:55]} Na8 {[%emt 0:06:12]} 16. b4 {[%emt 0:04:22]} Nb6 {[%emt 0:01:05]} 17. Nd2 {[%emt 0:00:48]} Na7 {[%emt 0:04:41]} 18. Nb3 {[%emt 0:01:29]} Nc4 {[%emt 0:03:35]} 19. Bxc4 {[%emt 0:01:05]} bxc4 {[%emt 0:02:11]} 20. Nc5 {[%emt 0:00:29]} Qc7 {[%emt 0:02:01]} 21. N3a4 {[%emt 0:01:04]} Nb5 {[%emt 0:01:45]} 22. Nxb7 {[%emt 0:03:57]} Qxb7 {[%emt 0:00:14]} 23. Nc5 {[%emt 0:00:09]} Qc6 {[%emt 0:06:23]} 24. Qa4 {[%emt 0:01:20]} Ra8 {[%emt 0:02:23]} 25. Qa5 {[%emt 0:02:32]} Rfb8 {[%emt 0:06:57]} 26. Rcd1 {[%emt 0:02:48]} Nc3 {[%emt 0:02:20]} 27. b5 {[%emt 0:01:35]} Nxb5 {[%emt 0:00:42]} 28. Bf4 {[%emt 0:02:47]} e6 {[%emt 0:05:54]} 29. Bg5 {[%emt 0:01:00]} Nxd4 {[%emt 0:04:59]} 30. Rxd4 {[%emt 0:02:13]} Rb5 {[%emt 0:00:10]} 31. Qd2 {[%emt 0:00:50]} Qxc5 {[%emt 0:00:55]} 32. Bf6 {[%emt 0:01:18]} Bf8 {[%emt 0:02:25]} 33. Rh4 {[%emt 0:02:13]} Rab8 {[%emt 0:04:53]} 34. Re3 {[%emt 0:04:33]} Rb2 {[%emt 0:01:59]} 35. Qd4 {[%emt 0:02:59]} Qxd4 {[%emt 0:00:22]} 36. Rxd4 {[%emt 0:00:04]} Bc5 {[%emt 0:00:11] normal} 0-1

[Event "-chT Youth Countries 2019"]
[Site "Wuerzburg"]
[Date "2019.10.04"]
[Round "5.6"]
[White "Schulz, Hannah"]
[Black "Yaghi, Rita"]
[Result "0-1"]
[ECO "B90"]
[WhiteElo "1554"]
[BlackElo "1973"]
[Annotator "NA"]
[PlyCount "92"]
[EventDate "2019.10.02"]
[EventType "team-tourn"]
[EventRounds "7"]
[EventCountry "GER"]
[SourceTitle "playchess.com"]
[Source "ChessBase"]
[SourceQuality "1"]
[WhiteTeam "Baden 1"]
[BlackTeam "Hessen"]
[TimeControl "40/5400+30:1800+30"]

1. e4 {[%emt 0:00:00]} c5 {[%emt 0:00:00]} 2. Nf3 {[%emt 0:00:00]} d6 {[%emt 0:00:00]} 3. d4 {[%emt 0:00:00]} cxd4 {[%emt 0:00:06]} 4. Nxd4 {[%emt 0:00:00]} Nf6 {[%emt 0:00:07]} 5. Nc3 {[%emt 0:00:00]} a6 {[%emt 0:00:39]} 6. Bd3 {[%emt 0:00:06]} e6 {[%emt 0:02:26]} 7. O-O {[%emt 0:00:45]} Be7 {[%emt 0:00:51]} 8. Kh1 {[%emt 0:02:26]} Qc7 {[%emt 0:01:42]} 9. f4 {[%emt 0:02:35]} Nbd7 {[%emt 0:01:28]} 10. Qe2 {[%emt 0:08:19]} b5 {[%emt 0:00:46]} 11. a3 {[%emt 0:01:25]} Bb7 {[%emt 0:00:21]} 12. Bd2 {[%emt 0:08:34]} O-O {[%emt 0:03:51]} 13. Rae1 {[%emt 0:02:51]} Rfd8 {[%emt 0:03:43]} 14. Rf3 {[%emt 0:06:13]} Nc5 {[%emt 0:04:41]} 15. Rg3 {[%emt 0:01:34]} Rac8 {[%emt 0:02:43]} 16. e5 {[%emt 0:18:59]} dxe5 {[%emt 0:10:08]} 17. fxe5 {[%emt 0:01:05]} Rxd4 {[%emt 0:00:36]} 18. exf6 {[%emt 0:00:17]} Bxf6 {[%emt 0:00:27]} 19. Rf1 {[%emt 0:12:19]} Rh4 {[%emt 0:06:26]} 20. Be1 {[%emt 0:04:03]} Kh8 21. Qe3 {[%emt 0:07:07]} Be5 {[%emt 0:28:38]} 22. Rh3 {[%emt 0:01:16]} Bd4 {[%emt 0:03:19]} 23. Bxh4 {[%emt 0:05:09]} Bxe3 {[%emt 0:00:43]} 24. Rxe3 {[%emt 0:00:09]} Nxd3 {[%emt 0:02:20]} 25. Rxd3 {[%emt 0:00:06]} f6 {[%emt 0:00:37]} 26. Rfd1 {[%emt 0:01:57]} g5 {[%emt 0:02:35]} 27. Bg3 {[%emt 0:01:21]} Qc6 {[%emt 0:00:17]} 28. R1d2 {[%emt 0:00:51]} Re8 {[%emt 0:03:29]} 29. Na2 {[%emt 0:02:37]} a5 {[%emt 0:00:57]} 30. Nc1 {[%emt 0:03:22]} Re7 {[%emt 0:01:42]} 31. Nb3 {[%emt 0:00:49]} a4 {[%emt 0:02:58]} 32. Na5 {[%emt 0:01:00]} Qb6 {[%emt 0:00:06]} 33. Nxb7 {[%emt 0:00:40]} Qxb7 {[%emt 0:00:08]} 34. Rd8+ Kg7 {[%emt 0:00:08]} 35. Kg1 {[%emt 0:03:46]} e5 {[%emt 0:00:23]} 36. Bf2 {[%emt 0:00:47]} Rc7 {[%emt 0:04:54]} 37. Kf1 {[%emt 0:02:32]} b4 {[%emt 0:02:11]} 38. axb4 {[%emt 0:00:35]} Qxb4 {[%emt 0:00:03]} 39. c3 {[%emt 0:00:33]} Qc4+ {[%emt 0:01:23]} 40. Ke1 {[%emt 0:00:41]} Rb7 {[%emt 0:00:15]} 41. g3 {[%emt 0:33:01]} Qe4+ {[%emt 0:30:46]} 42. Kd1 {[%emt 0:00:00]} Qb1+ {[%emt 0:00:00]} 43. Ke2 {[%emt 0:00:00]} Rxb2 {[%emt 0:00:00]} 44. R8d7+ {[%emt 0:00:00]} Kg6 {[%emt 0:00:00]} 45. Be3 {[%emt 0:00:00]} Rxd2+ {[%emt 0:00:00]} 46. Rxd2 {[%emt 0:00:00]} a3 {[%emt 0:00:00] normal} 0-1

[Event "-chT Youth Countries 2019"]
[Site "Wuerzburg"]
[Date "2019.10.04"]
[Round "5.6"]
[White "Gressler, Christian"]
[Black "Grining, Maria"]
[Result "0-1"]
[ECO "B13"]
[WhiteElo "1464"]
[BlackElo "1801"]
[Annotator "NA"]
[PlyCount "90"]
[EventDate "2019.10.02"]
[EventType "team-tourn"]
[EventRounds "7"]
[EventCountry "GER"]
[SourceTitle "playchess.com"]
[Source "ChessBase"]
[SourceQuality "1"]
[WhiteTeam "Mecklenburg-Vorpommern"]
[BlackTeam "Baden 2"]
[TimeControl "40/5400+30:1800+30"]

1. e4 {[%emt 0:00:00]} c6 {[%emt 0:00:00]} 2. d4 {[%emt 0:00:00]} d5 {[%emt 0:00:00]} 3. exd5 {[%emt 0:00:00]} cxd5 {[%emt 0:00:00]} 4. Bd3 {[%emt 0:00:00]} Nc6 {[%emt 0:00:14]} 5. c3 {[%emt 0:00:10]} Nf6 {[%emt 0:00:23]} 6. h3 {[%emt 0:00:16]} g6 {[%emt 0:00:53]} 7. Nf3 {[%emt 0:00:42]} Qc7 {[%emt 0:00:50]} 8. O-O {[%emt 0:00:55]} Bg7 {[%emt 0:00:13]} 9. Re1 {[%emt 0:00:28]} O-O {[%emt 0:00:18]} 10. Nbd2 {[%emt 0:01:50]} Re8 {[%emt 0:02:07]} 11. Nf1 {[%emt 0:01:50]} Nh5 {[%emt 0:09:19]} 12. Bg5 {[%emt 0:09:40]} Bd7 {[%emt 0:06:06]} 13. Qd2 {[%emt 0:00:33]} e5 {[%emt 0:19:23]} 14. Be2 {[%emt 0:12:07]} exd4 {[%emt 0:04:06]} 15. Nxd4 {[%emt 0:00:38]} Nxd4 {[%emt 0:03:06]} 16. Bxh5 {[%emt 0:03:50]} Ne6 {[%emt 0:01:13]} 17. Bg4 {[%emt 0:05:49]} Nxg5 {[%emt 0:03:38]} 18. Qxg5 {[%emt 0:00:32]} Bc6 {[%emt 0:03:47]} 19. Bf3 {[%emt 0:05:51]} d4 {[%emt 0:01:51]} 20. Bxc6 {[%emt 0:00:44]} Qxc6 {[%emt 0:00:19]} 21. cxd4 {[%emt 0:01:03]} Bxd4 {[%emt 0:00:40]} 22. Ne3 {[%emt 0:09:21]} Bf6 {[%emt 0:06:34]} 23. Qg4 {[%emt 0:03:45]} Bxb2 {[%emt 0:05:09]} 24. Rab1 {[%emt 0:00:45]} Bg7 {[%emt 0:02:37]} 25. Rec1 {[%emt 0:01:19]} Qa6 {[%emt 0:10:36]} 26. Qd7 {[%emt 0:04:09]} Qxa2 {[%emt 0:04:05]} 27. Rxb7 {[%emt 0:05:50]} Rad8 {[%emt 0:01:35]} 28. Rxa7 {[%emt 0:02:10]} Qb3 {[%emt 0:03:23]} 29. Rb7 {[%emt 0:04:25]} Rxd7 {[%emt 0:04:47]} 30. Rxb3 {[%emt 0:00:22]} Bh6 {[%emt 0:01:00]} 31. Rc2 {[%emt 0:03:40]} Red8 {[%emt 0:02:18]} 32. Ng4 {[%emt 0:03:57]} Bg7 {[%emt 0:00:19]} 33. Kf1 {[%emt 0:02:48]} Rd1+ {[%emt 0:03:02]} 34. Ke2 {[%emt 0:00:13]} h5 {[%emt 0:00:47]} 35. Ne3 {[%emt 0:01:00]} R1d7 {[%emt 0:00:12]} 36. Rb1 {[%emt 0:03:08]} Re8 {[%emt 0:00:48]} 37. Rd2 {[%emt 0:01:48]} Rde7 {[%emt 0:01:29]} 38. Rd3 {[%emt 0:03:48]} Ra8 {[%emt 0:00:57]} 39. Rbd1 {[%emt 0:01:20]} Ra2+ {[%emt 0:00:44]} 40. Kf3 {[%emt 0:00:41]} Bh6 {[%emt 0:00:31]} 41. Rb1 {[%emt 0:36:38]} Kg7 {[%emt 0:04:11]} 42. g4 {[%emt 0:00:00]} hxg4+ {[%emt 0:01:24]} 43. hxg4 {[%emt 0:00:00]} Ra4 {[%emt 0:00:55]} 44. Rg1 {[%emt 0:00:00]} Bg5 {[%emt 0:02:26]} 45. Rb3 {[%emt 0:00:00]} Ree4 {[%emt 0:01:50] normal} 0-1

[Event "-chT Youth Countries 2019"]
[Site "Wuerzburg"]
[Date "2019.10.04"]
[Round "5.7"]
[White "Kempe, Caius Emilian"]
[Black "Bardorz, Jana"]
[Result "0-1"]
[ECO "E81"]
[WhiteElo "1835"]
[BlackElo "1929"]
[Annotator "NA"]
[PlyCount "46"]
[EventDate "2019.10.02"]
[EventType "team-tourn"]
[EventRounds "7"]
[EventCountry "GER"]
[SourceTitle "playchess.com"]
[Source "ChessBase"]
[SourceQuality "1"]
[WhiteTeam "Sachsen"]
[BlackTeam "Bayern 1"]
[TimeControl "40/5400+30:1800+30"]

1. d4 {[%emt 0:00:00]} Nf6 {[%emt 0:00:00]} 2. c4 {[%emt 0:00:00]} g6 {[%emt 0:00:00]} 3. Nc3 {[%emt 0:00:00]} Bg7 {[%emt 0:00:00]} 4. e4 {[%emt 0:00:02]} d6 {[%emt 0:00:00]} 5. f3 {[%emt 0:00:19]} O-O {[%emt 0:00:00]} 6. Be3 {[%emt 0:00:06]} a6 {[%emt 0:00:45]} 7. Qd2 {[%emt 0:01:03]} Nbd7 {[%emt 0:00:15]} 8. Nge2 {[%emt 0:01:03]} b5 {[%emt 0:00:54]} 9. cxb5 {[%emt 0:04:03]} axb5 {[%emt 0:00:07]} 10. Nxb5 {[%emt 0:00:38]} c6 {[%emt 0:00:19]} 11. Nbc3 {[%emt 0:03:18]} e5 {[%emt 0:01:24]} 12. Nc1 {[%emt 0:08:45]} d5 {[%emt 0:04:26]} 13. exd5 {[%emt 0:04:41]} Nxd5 {[%emt 0:04:39]} 14. Nxd5 {[%emt 0:00:20]} cxd5 {[%emt 0:00:11]} 15. Be2 {[%emt 0:02:08]} Re8 {[%emt 0:14:00]} 16. O-O {[%emt 0:05:11]} Nb6 {[%emt 0:08:45]} 17. dxe5 {[%emt 0:04:27]} Bxe5 {[%emt 0:01:47]} 18. Bf2 {[%emt 0:09:53]} Nc4 {[%emt 0:08:44]} 19. Bxc4 {[%emt 0:00:30]} dxc4 {[%emt 0:00:05]} 20. Qb4 {[%emt 0:07:21]} Qc7 {[%emt 0:05:33]} 21. Bg3 {[%emt 0:01:30]} Bxg3 {[%emt 0:03:47]} 22. hxg3 {[%emt 0:00:37]} Qxg3 {[%emt 0:01:48]} 23. Qxc4 {[%emt 0:00:23]} Ba6 {[%emt 0:02:41] normal} 0-1

[Event "-chT Youth Countries 2019"]
[Site "Wuerzburg"]
[Date "2019.10.04"]
[Round "5.7"]
[White "Yue, Qizhou"]
[Black "Bock, Marlon"]
[Result "1/2-1/2"]
[ECO "B01"]
[WhiteElo "1810"]
[BlackElo "1671"]
[Annotator "NA"]
[PlyCount "86"]
[EventDate "2019.10.02"]
[EventType "team-tourn"]
[EventRounds "7"]
[EventCountry "GER"]
[SourceTitle "playchess.com"]
[Source "ChessBase"]
[SourceQuality "1"]
[WhiteTeam "Rheinland-Pfalz"]
[BlackTeam "Thüringen"]
[TimeControl "40/5400+30:1800+30"]

1. e4 {[%emt 0:00:00]} d5 {[%emt 0:00:00]} 2. exd5 {[%emt 0:00:00]} Qxd5 {[%emt 0:00:00]} 3. Nc3 {[%emt 0:00:00]} Qa5 {[%emt 0:00:00]} 4. Nf3 {[%emt 0:00:37]} Nf6 {[%emt 0:00:25]} 5. Bc4 {[%emt 0:02:13]} Bf5 {[%emt 0:02:30]} 6. d3 {[%emt 0:03:46]} e6 {[%emt 0:03:53]} 7. O-O {[%emt 0:00:57]} c6 {[%emt 0:00:41]} 8. Re1 {[%emt 0:04:08]} Be7 {[%emt 0:01:37]} 9. Bd2 {[%emt 0:02:17]} Qc7 {[%emt 0:02:05]} 10. Ne4 {[%emt 0:08:58]} Nbd7 {[%emt 0:03:22]} 11. Ng3 {[%emt 0:02:42]} Bg6 {[%emt 0:02:00]} 12. a4 {[%emt 0:03:51]} h6 {[%emt 0:06:00]} 13. Bc3 {[%emt 0:08:23]} O-O {[%emt 0:03:29]} 14. Qe2 {[%emt 0:03:11]} Nd5 {[%emt 0:06:29]} 15. Bxd5 {[%emt 0:08:57]} cxd5 {[%emt 0:00:21]} 16. Ne5 {[%emt 0:04:47]} Nxe5 {[%emt 0:04:44]} 17. Bxe5 {[%emt 0:00:19]} Bd6 {[%emt 0:00:17]} 18. Bxd6 {[%emt 0:04:23]} Qxd6 {[%emt 0:00:07]} 19. d4 {[%emt 0:01:09]} Rfc8 {[%emt 0:01:23]} 20. c3 {[%emt 0:00:54]} Rc4 {[%emt 0:01:54]} 21. a5 {[%emt 0:02:23]} Rac8 {[%emt 0:01:14]} 22. Qe5 {[%emt 0:01:08]} Qd7 {[%emt 0:02:56]} 23. f4 {[%emt 0:07:58]} Qb5 {[%emt 0:05:48]} 24. Re2 {[%emt 0:02:20]} Ra4 {[%emt 0:01:05]} 25. Rxa4 {[%emt 0:01:10]} Qxa4 {[%emt 0:00:09]} 26. f5 {[%emt 0:00:47]} exf5 {[%emt 0:00:28]} 27. Qxd5 {[%emt 0:02:43]} f4 {[%emt 0:02:45]} 28. Nf5 {[%emt 0:01:06]} Bxf5 {[%emt 0:03:53]} 29. Qxf5 {[%emt 0:00:12]} Re8 {[%emt 0:00:23]} 30. Kf2 {[%emt 0:10:19]} Rxe2+ {[%emt 0:04:02]} 31. Kxe2 {[%emt 0:00:09]} Qe8+ {[%emt 0:00:11]} 32. Qe5 {[%emt 0:01:04]} Qxe5+ {[%emt 0:00:49]} 33. dxe5 {[%emt 0:00:05]} g5 {[%emt 0:00:27]} 34. Kf3 {[%emt 0:01:02]} f5 {[%emt 0:00:34]} 35. b4 {[%emt 0:03:55]} Kf7 {[%emt 0:01:10]} 36. c4 {[%emt 0:00:25]} Ke6 {[%emt 0:00:07]} 37. b5 {[%emt 0:02:24]} Kxe5 {[%emt 0:03:41]} 38. c5 {[%emt 0:01:16]} Kd5 {[%emt 0:00:23]} 39. c6 {[%emt 0:01:04]} Kd6 {[%emt 0:03:05]} 40. cxb7 {[%emt 0:03:14]} Kc7 {[%emt 0:00:06]} 41. a6 {[%emt 0:30:23]} Kb8 {[%emt 0:30:45]} 42. h4 {[%emt 0:00:00]} Kc7 {[%emt 0:00:00]} 43. h5 {[%emt 0:00:00]} Kb8 {[%emt 0:00:00] normal} 1/2-1/2

[Event "-chT Youth Countries 2019"]
[Site "Wuerzburg"]
[Date "2019.10.04"]
[Round "5.7"]
[White "Mundt, Alexandra"]
[Black "Voigt, Anastasia"]
[Result "1-0"]
[ECO "C97"]
[WhiteElo "1760"]
[BlackElo "1457"]
[Annotator "NA"]
[PlyCount "98"]
[EventDate "2019.10.02"]
[EventType "team-tourn"]
[EventRounds "7"]
[EventCountry "GER"]
[SourceTitle "playchess.com"]
[Source "ChessBase"]
[SourceQuality "1"]
[WhiteTeam "Schleswig-Holstein"]
[BlackTeam "Sachsen-Anhalt"]
[TimeControl "40/5400+30:1800+30"]

1. e4 {[%emt 0:00:00]} e5 {[%emt 0:00:00]} 2. Nf3 {[%emt 0:00:00]} Nc6 {[%emt 0:00:00]} 3. Bb5 {[%emt 0:00:00]} a6 {[%emt 0:00:00]} 4. Ba4 {[%emt 0:00:00]} Nf6 {[%emt 0:00:02]} 5. O-O {[%emt 0:00:12]} Be7 {[%emt 0:00:14]} 6. Re1 {[%emt 0:00:12]} b5 {[%emt 0:00:04]} 7. Bb3 {[%emt 0:00:08]} d6 {[%emt 0:00:07]} 8. h3 {[%emt 0:00:32]} O-O {[%emt 0:00:28]} 9. c3 {[%emt 0:00:10]} Na5 {[%emt 0:00:08]} 10. Bc2 {[%emt 0:00:29]} c5 {[%emt 0:00:19]} 11. d4 {[%emt 0:05:24]} Qc7 {[%emt 0:02:50]} 12. Bg5 {[%emt 0:02:53]} cxd4 {[%emt 0:00:57]} 13. cxd4 {[%emt 0:00:32]} Nc6 {[%emt 0:00:34]} 14. Nc3 {[%emt 0:06:05]} Bd7 {[%emt 0:00:29]} 15. Rc1 {[%emt 0:01:45]} Rac8 {[%emt 0:11:13]} 16. d5 {[%emt 0:16:19]} Na5 {[%emt 0:06:42]} 17. Bb1 {[%emt 0:08:15]} Qb6 {[%emt 0:01:52]} 18. Be3 {[%emt 0:04:24]} Qb7 {[%emt 0:00:44]} 19. b3 {[%emt 0:00:14]} Qb8 {[%emt 0:02:12]} 20. Qd2 {[%emt 0:10:20]} Nb7 {[%emt 0:03:11]} 21. b4 {[%emt 0:01:51]} a5 {[%emt 0:01:57]} 22. a3 {[%emt 0:00:05]} Ne8 {[%emt 0:09:38]} 23. Bd3 {[%emt 0:04:42]} axb4 {[%emt 0:02:18]} 24. axb4 {[%emt 0:00:05]} Nd8 {[%emt 0:02:00]} 25. Ra1 {[%emt 0:07:29]} Rc7 {[%emt 0:03:31]} 26. Rec1 {[%emt 0:00:49]} Rb7 {[%emt 0:01:13]} 27. Qe2 {[%emt 0:05:56]} Nc7 {[%emt 0:00:33]} 28. Nd2 {[%emt 0:02:15]} f5 {[%emt 0:01:28]} 29. exf5 {[%emt 0:09:31]} Bxf5 {[%emt 0:00:56]} 30. Bxf5 {[%emt 0:02:57]} Rxf5 {[%emt 0:01:03]} 31. Qd3 {[%emt 0:00:10]} Rf8 {[%emt 0:02:17]} 32. Nb3 {[%emt 0:00:57]} Ne8 {[%emt 0:11:50]} 33. Na5 {[%emt 0:03:32]} Rc7 {[%emt 0:00:45]} 34. Nxb5 {[%emt 0:01:43]} Rxc1+ 35. Rxc1 {[%emt 0:00:05]} Nf6 {[%emt 0:01:24]} 36. Nc6 {[%emt 0:01:52]} Nxc6 {[%emt 0:01:39]} 37. dxc6 {[%emt 0:00:24]} d5 {[%emt 0:00:22]} 38. c7 {[%emt 0:01:14]} Qb7 {[%emt 0:00:20]} 39. Na7 {[%emt 0:01:59]} d4 {[%emt 0:01:42]} 40. c8=Q {[%emt 0:00:21]} Rxc8 {[%emt 0:00:08]} 41. Nxc8 {[%emt 0:33:18]} dxe3 {[%emt 0:30:10]} 42. Nxe7+ {[%emt 0:00:25]} Qxe7 {[%emt 0:00:15]} 43. Qxe3 {[%emt 0:00:00]} Qxb4 {[%emt 0:00:00]} 44. Qxe5 {[%emt 0:00:00]} Kf7 {[%emt 0:00:00]} 45. Rc7+ {[%emt 0:00:00]} Kg6 {[%emt 0:00:00]} 46. Qg3+ {[%emt 0:00:00]} Kf5 {[%emt 0:00:00]} 47. Rxg7 {[%emt 0:00:00]} Ke6 {[%emt 0:00:00]} 48. Qe3+ {[%emt 0:00:00]} Kd6 {[%emt 0:00:00]} 49. Qe7+ {[%emt 0:00:00]} Kd5 {normal} 1-0

[Event "-chT Youth Countries 2019"]
[Site "Wuerzburg"]
[Date "2019.10.04"]
[Round "5.7"]
[White "Buchholz, Maja"]
[Black "Fischer, Darja"]
[Result "1/2-1/2"]
[ECO "A20"]
[WhiteElo "1671"]
[BlackElo "1604"]
[Annotator "NA"]
[PlyCount "86"]
[EventDate "2019.10.02"]
[EventType "team-tourn"]
[EventRounds "7"]
[EventCountry "GER"]
[SourceTitle "playchess.com"]
[Source "ChessBase"]
[SourceQuality "1"]
[WhiteTeam "Hessen"]
[BlackTeam "Baden 1"]
[TimeControl "40/5400+30:1800+30"]

1. c4 {[%emt 0:00:00]} e5 {[%emt 0:00:00]} 2. g3 {[%emt 0:00:00]} c6 {[%emt 0:00:13]} 3. Bg2 {[%emt 0:00:00]} d5 {[%emt 0:00:27]} 4. cxd5 {[%emt 0:00:47]} cxd5 {[%emt 0:00:15]} 5. Nf3 {[%emt 0:00:40]} Nc6 {[%emt 0:00:55]} 6. O-O {[%emt 0:02:24]} Nf6 {[%emt 0:01:00]} 7. Nc3 {[%emt 0:01:18]} Bd6 {[%emt 0:04:52]} 8. d4 {[%emt 0:03:14]} e4 {[%emt 0:02:58]} 9. Ne1 {[%emt 0:00:26]} h6 {[%emt 0:03:46]} 10. Nc2 {[%emt 0:07:22]} O-O {[%emt 0:03:03]} 11. a3 {[%emt 0:07:47]} a6 {[%emt 0:03:14]} 12. Bd2 {[%emt 0:05:23]} Be6 {[%emt 0:04:11]} 13. Qc1 {[%emt 0:07:28]} Qd7 {[%emt 0:05:03]} 14. Re1 {[%emt 0:05:44]} Bh3 {[%emt 0:03:16]} 15. Bh1 {[%emt 0:00:41]} Rac8 {[%emt 0:13:52]} 16. Bf4 {[%emt 0:04:08]} Bxf4 17. Qxf4 {[%emt 0:00:19]} Ne7 {[%emt 0:10:29]} 18. Qd2 {[%emt 0:09:10]} Nh7 {[%emt 0:04:25]} 19. Ne3 {[%emt 0:03:00]} f5 {[%emt 0:02:31]} 20. Ng2 {[%emt 0:02:05]} Bxg2 {[%emt 0:03:32]} 21. Bxg2 {[%emt 0:00:06]} Rf6 {[%emt 0:02:44]} 22. f3 {[%emt 0:10:40]} Rcf8 {[%emt 0:04:48]} 23. Rac1 {[%emt 0:04:38]} g5 {[%emt 0:06:01]} 24. Qc2 {[%emt 0:02:38]} h5 {[%emt 0:03:06]} 25. Qb3 {[%emt 0:02:05]} Kh8 {[%emt 0:03:06]} 26. e3 {[%emt 0:04:40]} g4 {[%emt 0:02:59]} 27. f4 {[%emt 0:00:55]} h4 {[%emt 0:04:27]} 28. Kf2 {[%emt 0:00:46]} h3 {[%emt 0:00:54]} 29. Bf1 {[%emt 0:00:13]} Rc8 {[%emt 0:00:48]} 30. Ke2 {[%emt 0:02:26]} Rfc6 {[%emt 0:01:34]} 31. Kd2 {[%emt 0:00:28]} Qc7 {[%emt 0:01:53]} 32. Be2 {[%emt 0:01:02]} Qb6 {[%emt 0:00:56]} 33. Qa2 {[%emt 0:01:04]} Nf6 {[%emt 0:01:48]} 34. Bd1 {[%emt 0:00:37]} Qd8 {[%emt 0:00:45]} 35. Bb3 {[%emt 0:00:42]} b5 {[%emt 0:00:53]} 36. Bd1 {[%emt 0:01:59]} a5 {[%emt 0:01:15]} 37. b4 {[%emt 0:02:31]} axb4 {[%emt 0:01:01]} 38. axb4 {[%emt 0:00:51]} Ra8 {[%emt 0:00:18]} 39. Qb2 {[%emt 0:00:21]} Nc8 {[%emt 0:00:46]} 40. Be2 {[%emt 0:01:36]} Nd6 {[%emt 0:00:43]} 41. Bxb5 {[%emt 0:31:04]} Nxb5 {[%emt 0:01:34]} 42. Nxb5 {[%emt 0:00:00]} Rca6 {[%emt 0:01:08]} 43. Ra1 {[%emt 0:00:00]} Qb6 {[%emt 0:05:15] normal} 1/2-1/2